{"text_format":"1","workbook":"xlsx","n_sheets":10,"sheets":["zemlje","P. Podaci o kontakt osobama","Uputa za popunjavanje","A.1. Uvoz na i izvoz nakon ","A.2. Prihod od usluge oplem.  ","B.1. Izvoz na i uvoz nakon","B.2. Rashod za uslugu oplem.","N. Napomena","E. Kreiranje datoteke","Padajuće liste"],"not_rendered":{"charts":0,"images":0,"macros":1,"external_links":0,"defined_names":10,"comments":2,"pivot_tables":0},"unopened":[],"bounds":{"document_bytes":16777216,"sheet_cells":100000,"rows_first":2000,"rows_last":500,"rows_between":2000,"halvings":0,"cell_chars":16384,"cell_head_chars":4096},"cells_cut":0,"cells_raw":0,"read":"whole","date_system":"1900"}

{"sheet":"zemlje","index":0,"n_rows":320,"n_cols":3,"rows_kept":320,"cut":false,"hidden":true,"merged":[]}
["AD",null,{"$f":"CONCATENATE(\"C-\",A1)","v":"C-AD"}]
["AE",null,"C-AE"]
["AF",null,"C-AF"]
["AG",null,"C-AG"]
["AI",null,"C-AI"]
["AL",null,"C-AL"]
["AM",null,"C-AM"]
["AN",null,"C-AN"]
["AO",null,"C-AO"]
["AQ",null,"C-AQ"]
["AR",null,"C-AR"]
["AS",null,"C-AS"]
["AT",null,"C-AT"]
["AU",null,"C-AU"]
["AW",null,"C-AW"]
["AX",null,"C-AX"]
["AZ",null,"C-AZ"]
["BA",null,"C-BA"]
["BB",null,"C-BB"]
["BD",null,"C-BD"]
["BE",null,"C-BE"]
["BF",null,"C-BF"]
["BG",null,"C-BG"]
["BH",null,"C-BH"]
["BI",null,"C-BI"]
["BJ",null,"C-BJ"]
["BL",null,"C-BL"]
["BM",null,"C-BM"]
["BN",null,"C-BN"]
["BO",null,"C-BO"]
["BR",null,"C-BR"]
["BS",null,"C-BS"]
["BT",null,"C-BT"]
["BV",null,"C-BV"]
["BW",null,"C-BW"]
["BY",null,"C-BY"]
["BZ",null,"C-BZ"]
["CA",null,"C-CA"]
["CC",null,"C-CC"]
["CD",null,"C-CD"]
["CF",null,"C-CF"]
["CG",null,"C-CG"]
["CH",null,"C-CH"]
["CI",null,"C-CI"]
["CK",null,"C-CK"]
["CL",null,"C-CL"]
["CM",null,"C-CM"]
["CN",null,"C-CN"]
["CO",null,"C-CO"]
["CR",null,"C-CR"]
["CU",null,"C-CU"]
["CV",null,"C-CV"]
["CX",null,"C-CX"]
["CY",null,"C-CY"]
["CZ",null,"C-CZ"]
["DE",null,"C-DE"]
["DJ",null,"C-DJ"]
["DK",null,"C-DK"]
["DM",null,"C-DM"]
["DO",null,"C-DO"]
["DZ",null,"C-DZ"]
["EC",null,"C-EC"]
["EE",null,"C-EE"]
["EG",null,"C-EG"]
["EH",null,{"$f":"CONCATENATE(\"C-\",A65)","v":"C-EH"}]
["ER",null,"C-ER"]
["ES",null,"C-ES"]
["ET",null,"C-ET"]
["FI",null,"C-FI"]
["FJ",null,"C-FJ"]
["FK",null,"C-FK"]
["FM",null,"C-FM"]
["FO",null,"C-FO"]
["FR",null,"C-FR"]
["GA",null,"C-GA"]
["GB",null,"C-GB"]
["GD",null,"C-GD"]
["GE",null,"C-GE"]
["GF",null,"C-GF"]
["GG",null,"C-GG"]
["GH",null,"C-GH"]
["GI",null,"C-GI"]
["GL",null,"C-GL"]
["GM",null,"C-GM"]
["GN",null,"C-GN"]
["GP",null,"C-GP"]
["GQ",null,"C-GQ"]
["GR",null,"C-GR"]
["GS",null,"C-GS"]
["GT",null,"C-GT"]
["GU",null,"C-GU"]
["GW",null,"C-GW"]
["GY",null,"C-GY"]
["HK",null,"C-HK"]
["HM",null,"C-HM"]
["HN",null,"C-HN"]
["HT",null,"C-HT"]
["HU",null,"C-HU"]
["ID",null,"C-ID"]
["IE",null,"C-IE"]
["IL",null,"C-IL"]
["IM",null,"C-IM"]
["IN",null,"C-IN"]
["IO",null,"C-IO"]
["IQ",null,"C-IQ"]
["IR",null,"C-IR"]
["IS",null,"C-IS"]
["IT",null,"C-IT"]
["JE",null,"C-JE"]
["JM",null,"C-JM"]
["JO",null,"C-JO"]
["JP",null,"C-JP"]
["KE",null,"C-KE"]
["KH",null,"C-KH"]
["KI",null,"C-KI"]
["KM",null,"C-KM"]
["KN",null,"C-KN"]
["KP",null,"C-KP"]
["KR",null,"C-KR"]
["KW",null,"C-KW"]
["KY",null,"C-KY"]
["KZ",null,"C-KZ"]
["LA",null,"C-LA"]
["LB",null,"C-LB"]
["LC",null,"C-LC"]
["LI",null,"C-LI"]
["LK",null,"C-LK"]
["LR",null,"C-LR"]
["LS",null,{"$f":"CONCATENATE(\"C-\",A129)","v":"C-LS"}]
["LT",null,"C-LT"]
["LU",null,"C-LU"]
["LV",null,"C-LV"]
["LY",null,"C-LY"]
["MA",null,"C-MA"]
["MC",null,"C-MC"]
["MD",null,"C-MD"]
["ME",null,"C-ME"]
["MF",null,"C-MF"]
["MG",null,"C-MG"]
["MH",null,"C-MH"]
["MK",null,"C-MK"]
["ML",null,"C-ML"]
["MM",null,"C-MM"]
["MN",null,"C-MN"]
["MO",null,"C-MO"]
["MP",null,"C-MP"]
["MQ",null,"C-MQ"]
["MR",null,"C-MR"]
["MS",null,"C-MS"]
["MT",null,"C-MT"]
["MU",null,"C-MU"]
["MV",null,"C-MV"]
["MW",null,"C-MW"]
["MX",null,"C-MX"]
["MY",null,"C-MY"]
["MZ",null,"C-MZ"]
["NA",null,"C-NA"]
["NC",null,"C-NC"]
["NE",null,"C-NE"]
["NF",null,"C-NF"]
["NG",null,"C-NG"]
["NI",null,"C-NI"]
["NL",null,"C-NL"]
["NO",null,"C-NO"]
["NP",null,"C-NP"]
["NR",null,"C-NR"]
["NU",null,"C-NU"]
["NZ",null,"C-NZ"]
["OM",null,"C-OM"]
["PA",null,"C-PA"]
["PE",null,"C-PE"]
["PF",null,"C-PF"]
["PG",null,"C-PG"]
["PH",null,"C-PH"]
["PK",null,"C-PK"]
["PL",null,"C-PL"]
["PM",null,"C-PM"]
["PN",null,"C-PN"]
["PR",null,"C-PR"]
["PS",null,"C-PS"]
["PT",null,"C-PT"]
["PW",null,"C-PW"]
["PY",null,"C-PY"]
["QA",null,"C-QA"]
["RE",null,"C-RE"]
["RO",null,"C-RO"]
["RS",null,"C-RS"]
["RU",null,"C-RU"]
["RW",null,"C-RW"]
["SA",null,"C-SA"]
["SB",null,"C-SB"]
["SC",null,"C-SC"]
["SD",null,{"$f":"CONCATENATE(\"C-\",A193)","v":"C-SD"}]
["SE",null,"C-SE"]
["SG",null,"C-SG"]
["SH",null,"C-SH"]
["SI",null,"C-SI"]
["SJ",null,"C-SJ"]
["SK",null,"C-SK"]
["SL",null,"C-SL"]
["SM",null,"C-SM"]
["SN",null,"C-SN"]
["SO",null,"C-SO"]
["SR",null,"C-SR"]
["ST",null,"C-ST"]
["SV",null,"C-SV"]
["SY",null,"C-SY"]
["SZ",null,"C-SZ"]
["TC",null,"C-TC"]
["TD",null,"C-TD"]
["TF",null,"C-TF"]
["TG",null,"C-TG"]
["TH",null,"C-TH"]
["TJ",null,"C-TJ"]
["TK",null,"C-TK"]
["TL",null,"C-TL"]
["TM",null,"C-TM"]
["TN",null,"C-TN"]
["TO",null,"C-TO"]
["TR",null,"C-TR"]
["TT",null,"C-TT"]
["TV",null,"C-TV"]
["TW",null,"C-TW"]
["TZ",null,"C-TZ"]
["UA",null,"C-UA"]
["UG",null,"C-UG"]
["UM",null,"C-UM"]
["US",null,"C-US"]
["UY",null,"C-UY"]
["UZ",null,"C-UZ"]
["VA",null,"C-VA"]
["VC",null,"C-VC"]
["VE",null,"C-VE"]
["VG",null,"C-VG"]
["VI",null,"C-VI"]
["VN",null,"C-VN"]
["VU",null,"C-VU"]
["WF",null,"C-WF"]
["WS",null,"C-WS"]
["XK",null,"C-XK"]
["YE",null,"C-YE"]
["YT",null,"C-YT"]
["ZA",null,"C-ZA"]
["ZM",null,"C-ZM"]
["ZW",null,"C-ZW"]
["1B",null,"C-1B"]
["1C",null,"C-1C"]
["1D",null,"C-1D"]
["1E",null,"C-1E"]
["1F",null,"C-1F"]
["1H",null,"C-1H"]
["1J",null,"C-1J"]
["1K",null,"C-1K"]
["1L",null,"C-1L"]
["1M",null,"C-1M"]
["1N",null,"C-1N"]
["1O",null,{"$f":"CONCATENATE(\"C-\",A257)","v":"C-1O"}]
["1P",null,"C-1P"]
["1Q",null,"C-1Q"]
["1R",null,"C-1R"]
["1S",null,"C-1S"]
["1T",null,"C-1T"]
["1Z",null,"C-1Z"]
["4B",null,"C-4B"]
["4C",null,"C-4C"]
["4D",null,"C-4D"]
["4E",null,"C-4E"]
["4G",null,"C-4G"]
["4H",null,"C-4H"]
["4J",null,"C-4J"]
["4K",null,"C-4K"]
["4L",null,"C-4L"]
["4M",null,"C-4M"]
["4N",null,"C-4N"]
["4P",null,"C-4P"]
["4Q",null,"C-4Q"]
["5A",null,"C-5A"]
["5B",null,"C-5B"]
["5C",null,"C-5C"]
["5D",null,"C-5D"]
["5E",null,"C-5E"]
["5F",null,"C-5F"]
["5G",null,"C-5G"]
["5H",null,"C-5H"]
["5I",null,"C-5I"]
["5J",null,"C-5J"]
["5K",null,"C-5K"]
["5L",null,"C-5L"]
["5M",null,"C-5M"]
["5N",null,"C-5N"]
["5O",null,"C-5O"]
["5P",null,"C-5P"]
["5Q",null,"C-5Q"]
["5R",null,"C-5R"]
["5S",null,"C-5S"]
["5T",null,"C-5T"]
["5U",null,"C-5U"]
["5W",null,"C-5W"]
["5X",null,"C-5X"]
["5Y",null,"C-5Y"]
["5Z",null,"C-5Z"]
["6B",null,"C-6B"]
["6C",null,"C-6C"]
["6D",null,"C-6D"]
["6E",null,"C-6E"]
["6F",null,"C-6F"]
["6G",null,"C-6G"]
["6H",null,"C-6H"]
["6I",null,"C-6I"]
["6J",null,"C-6J"]
["6K",null,"C-6K"]
["6L",null,"C-6L"]
["6M",null,"C-6M"]
["6N",null,"C-6N"]
["6O",null,"C-6O"]
["6P",null,"C-6P"]
["6Q",null,"C-6Q"]
["6R",null,"C-6R"]
["6Z",null,"C-6Z"]
["7Z",null,"C-7Z"]

{"sheet":"P. Podaci o kontakt osobama","index":1,"n_rows":3,"n_cols":4,"rows_kept":3,"cut":false,"hidden":false,"merged":[]}
["P. Podaci o kontakt osobama"]
[]
["Oznaka osobe","Ime i prezime","Broj telefona","E-adresa"]

{"sheet":"Uputa za popunjavanje","index":2,"n_rows":105,"n_cols":1,"rows_kept":105,"cut":false,"hidden":false,"merged":[]}
["UPUTA ZA POPUNJAVANJE TABLICA  A1.,  A2., B1. i B2."]
[]
["Oplemenjivanjem se smatraju operacije transformacije, dogradnje, sastavljanja, obnavljanja, poboljšanja i sl., s ciljem proizvodnje nove "]
["značajno poboljšane robe.To nužno ne uključuje promjenu u klasifikaciji proizvoda."]
["Izvještajne institucije koje ne uvoze/izvoze robu koja se oplemenjuje već samo pružaju/primaju uslugu oplemenjivanja, popunjavaju samo "]
["tablice A2 ili B2."]
[]
[{"$f":"'A.1. Uvoz na i izvoz nakon '!$A$1","v":"Tablica A.1. Vrijednost robe koja se uvozi na oplemenjivanje i izvozi nakon oplemenjivanja (u eurima)"}]
["U ovu tablicu treba unijeti i vrijednost uvezene robu na oplemenjivanje koja će u konačnici činiti manje od 10% vrijednosti gotovog"]
["proizvoda kao i vrijednost takvog izvoza nakon oplemenjivanja."]
[]
["Polje 1: Vrsta transakcije – s ponuđene padajuće liste odabire se jedna ili više brojčanih oznaka koje označavaju odgovarajuću vrstu transakcije s robom:  "]
["  "]
["1 –  roba uvezena na oplemenjivanje bez promjene vlasništva za koju se očekuje da će se, nakon završetka procesa oplemenjivanja,  "]
["       vratiti u inozemstvo vlasniku robe ili nekoj trećoj osobi. U tom slučaju, u stupac 4 unosi se vrijednost uvezene robe na oplemenjivanje"]
["       iz dokumenata koji ju prate (Fakturna vrijednost robe iz Intrastat obrasca i/ili Statistička vrijednost iz carinske deklaracije). "]
["2 – roba izvezena nakon oplemenjivanja u inozemstvo vlasniku robe ili trećoj osobi koju odredi vlasnik robe. U tom slučaju, u stupac 4 "]
["      unosi se bruto vrijednost robe koja sadrži vrijednost robe prije oplemenjivanja uvećanu za dodanu vrijednost materijala i usluge "]
["      pružene od strane izvještajne institucije (Fakturna vrijednost robe iz Intrastat obrasca i/ili Statistička vrijednost iz carinske deklaracije). "]
["3 – roba uvezena na oplemenjivanje koja ostaje u Republici Hrvatskoj. Odnosi se na robu koja se uveze na oplemenjivanje, a nakon "]
["      oplemenjivanja se ne vraća u inozemstvo, već ostaje u vlasništvu izvještajne institucije ili se prosljeđuje drugom kupcu unutar RH. "]
["     U stupac 4 unosi se vrijednost uvezene robe na oplemenjivanje iz dokumenata koji ju prate (Fakturna vrijednost robe iz Intrastat obrasca i/ili Statistička "]
["     vrijednost iz carinske deklaracije). "]
[]
["Polje 2:  Zemlja – s ponuđene padajuće liste odabire se oznaka zemlje namjene/isporuke iz Intrastat obrasca ili namjene/podrijetla iz carinske deklaracije."]
["Ovo obilježje popunjava se prema abecednom popisu država i zemalja i njihovih oznaka."]
["Abecedni popis država i zemalja i njihovih oznaka vode se u elektroničkom obliku i objavljuju na internetskim stranicama Hrvatske narodne banke. "]
["Obilježje se popunjava unosom dvoslovne oznake države ili međunarodne financijske institucije sa spomenutih popisa. Popis država i zemalja sastavljen "]
["je na temelju normi HRN EN ISO 3166-1:2020, a mijenja se na temelju izmjena i dopuna koje objavljuje Međunarodna organizacija za normizaciju (ISO)."]
["Iznimno, za Kosovo se rabi posebna oznaka XK."]
[]
["Polje 3: Iznos – Unosi se vrijednost robe uvezene na oplemenjivanje i/ ili vrijednost robe izvezene nakon oplemenjivanja ."]
["Treba prikazati ukupnu vrijednost robe, što znači da vrijednost robe nakon oplemenjivanja uključuje vrijednost uvezene robe (materijala)"]
["na oplemenjivanje uvećanu za vrijednost ugrađenog materijala i vrijednost domaće usluge (Statistička vrijednost robe koja je prikazana"]
["u Intrastat obrascu i/ili carinskoj deklaraciji prilikom uvoza/izvoza robe)."]
["Vrijednosti iz originalnih valuta preračunavaju se u eure koristeći srednji tečaj Hrvatske narodne banke na dan fakture/transakcije.  "]
[]
[{"$f":"'A.2. Prihod od usluge oplem.  '!$A$1","v":"Tablica A.2. Prihod od pružene usluge oplemenjivanja (u eurima)"}]
[]
["Polje 1: Vrsta transakcije – s ponuđene padajuće liste odabire se jedna od ponuđenih brojčanih oznaka za vrstu transakcije:  "]
["1a –  prihod od usluge oplemenjivanja za robu koja se nakon oplemenjivanja vraća u inozemstvo "]
["1b – prihod od usluge oplemenjivanja za robu koja nakon oplemenjivanja ostaje u Republici Hrvatskoj "]
[]
["Polje 2: Zemlja – s ponuđene padajuće liste odabire se oznaka zemlje vlasnika robe kojemu je pružena usluga oplemenjivanja."]
["Ovo obilježje popunjava se prema abecednom popisu država i zemalja i njihovih oznaka."]
["Abecedni popis država i zemalja i njihovih oznaka vode se u elektroničkom obliku i objavljuju na internetskim stranicama Hrvatske narodne banke. "]
["Obilježje se popunjava unosom dvoslovne oznake države ili međunarodne financijske institucije sa spomenutih popisa. Popis država i zemalja sastavljen "]
["je na temelju normi HRN EN ISO 3166-1:2020, a mijenja se na temelju izmjena i dopuna koje objavljuje Međunarodna organizacija za normizaciju (ISO)."]
["Iznimno, za Kosovo se rabi posebna oznaka XK."]
[]
["Polje 3: Iznos – Unosi se iznos koji je naveden u fakturi ispostavljenoj vlasniku robe za obavljenu uslugu oplemenjivanja u koji obvezno "]
["treba biti uključena i vrijednost eventualno ugrađenog vlastitog materijala. Vrijednosti iz originalnih valuta preračunavaju se u eure koristeći srednji tečaj   "]
["Hrvatske narodne banke na dan izdavanja fakture."]
[]
[{"$f":"'B.1. Izvoz na i uvoz nakon'!$A$1","v":"Tablica B.1. Vrijednost robe koja se izvozi na oplemenjivanje i uvozi nakon oplemenjivanja (u eurima)"}]
["U ovu tablicu treba unijeti i vrijednost izvezene robe na oplemenjivanje koja će u konačnici činiti manje od 10% vrijednosti gotovog "]
["proizvoda kao i vrijednost takvog uvoza nakon oplemenjivanja."]
[]
["Polje 1: Vrsta transakcije – s ponuđene padajuće liste odabire se jedna ili više brojčanih oznaka koje označavaju odgovarajuću vrstu transakcije s robom:  "]
[]
["1 –  roba izvezena na oplemenjivanje u inozemstvo bez promjene vlasništva, za koju se očekuje da će se, nakon završetka procesa"]
["      oplemenjivanja,  vratiti izvještajnoj instituciji. U tom slučaju, u stupac 4 unosi se vrijednost izvezene robe  iz dokumenata koji ju "]
["      prate(Fakturna vrijednost iz Intrastat obrasca i/ili Statistička vrijednost iz carinske deklaracije)."]
["2 – roba uvezena nakon oplemenjivanja u inozemstvu vlasniku robe u Republici Hrvatskoj. U tom slučaju, u stupac 4 unosi se "]
["     bruto vrijednost robe koja uključuje vrijednost robe prije oplemenjivanja uvećanu za dodanu vrijednost materijala i usluge pružene"]
["     od strane oplemenjivača u inozemstvu (Fakturna vrijednost robe iz Intrastat obrasca i/ili Statistička vrijednost iz carinske deklaracije)."]
["2a –roba kupljena u inozemstvu, oplemenjena u inozemstvu  te nakon oplemenjivanja vraćena u Republiku Hrvatsku (šifra vrste"]
["      posla 52). U stupac 4 unosi se vrijednost kupljene robe uvećana za vrijednost usluge oplemenjivanja obavljene u inozemstvu "]
["     (Fakturna vrijednost robe iz Intrastat obrasca i/ili Statistička vrijednost iz carinske deklaracije)."]
["3 – roba izvezena na oplemenjivanje koja ostaje u inozemstvu . U tom slučaju, u stupac 4 unosi se vrijednost robe koja je izvezena na "]
["     oplemenjivanje te se nakon oplemenjivanja ne vraća u Republiku Hrvatsku , već je izvještajna institucija (vlasnik robe) prodaje"]
["     oplemenjivaču ili nekom drugom kupcu u inozemstvu. U tom slučaju, u stupac 4 unosi se vrijednost izvezene robe  iz dokumenata"]
["     koji  ju  prate (Fakturna vrijednost robe iz Intrastat obrasca i/ili Statistička vrijednost iz carinske deklaracije)."]
[]
["Polje 2: Zemlja – S ponuđene padajuće liste odabire se oznaka zemlje namjene/isporuke iz Intrastat obrasca ili namjene/podrijetla iz carinske deklaracije "]
["Ovo obilježje popunjava se prema abecednom popisu država i zemalja i njihovih oznaka."]
["Abecedni popis država i zemalja i njihovih oznaka vode se u elektroničkom obliku i objavljuju na internetskim stranicama Hrvatske narodne banke. "]
["Obilježje se popunjava unosom dvoslovne oznake države ili međunarodne financijske institucije sa spomenutih popisa. Popis država i zemalja sastavljen  "]
["je na temelju normi HRN EN ISO 3166-1:2020, a mijenja se na temelju izmjena i dopuna koje objavljuje Međunarodna organizacija za normizaciju (ISO)."]
["Iznimno, za Kosovo se rabi posebna oznaka XK."]
["Ukoliko je kao zemlja podrijetla u carinskoj deklaraciji navedena šifra 978 (EU), u ovaj obrazac treba unijeti zemlju otpreme/uvoza (polje"]
["15a JCD-a)."]
[]
["Polje 3: Iznos – Unosi se vrijednost izvezene robe na oplemenjivanje i/ ili vrijednost uvezene robe nakon  oplemenjivanja "]
["Transakcije se izražavaju u eurima, a pri preračunavanju iz originalnih valuta primjenjuje se srednji tečaj Hrvatske narodne banke na dan fakture/transakcije."]
["Treba  prikazati ukupnu vrijednost robe, što znači da roba uvezena nakon oplemenjivanja  uključuje vrijednost izvezene  robe (materijala) "]
["na oplemenjivanje, vrijednost ugrađenog materijala i vrijednost inozemne usluge oplemenjivanja (Fakturna vrijednost robe  koja"]
["je prikazana u Intrastat obrascu i/ili Statistička vrijednost robe prikazana u carinskoj deklaraciji prilikom izvoza/uvoza robe). "]
[]
[]
[{"$f":"'B.2. Rashod za uslugu oplem.'!$A$1","v":"Tablica B.2. Rashod za primljenu uslugu oplemenjivanja (u eurima)"}]
[]
["Polje 1: Vrsta transakcije – s ponuđene padajuće liste unosi se jedna od ponuđenih brojčanih oznaka za vrstu transakcije:  "]
["1a – rashod za primljenu uslugu oplemenjivanja na robi koja se vraća u Republiku Hrvatsku"]
["1b – rashod za primljenu uslugu oplemenjivanja na robi koja nakon oplemenjivanja ostaje u inozemstvu "]
[]
["Polje 2: Zemlja – s ponuđene padajuće liste odabire se oznaka zemlje inozemnog poslovnog subjekta koji je pružio uslugu oplemenjivanja"]
["Ovo obilježje popunjava se prema abecednom popisu država i zemalja i njihovih oznaka."]
["Abecedni popis država i zemalja i njihovih oznaka vode se u elektroničkom obliku i objavljuju na internetskim stranicama Hrvatske narodne banke. "]
["Obilježje se popunjava unosom dvoslovne oznake države ili međunarodne financijske institucije sa spomenutih popisa. Popis država i zemalja sastavljen  "]
["je na temelju normi HRN EN ISO 3166-1:2020, a mijenja se na temelju izmjena i dopuna koje objavljuje Međunarodna organizacija za normizaciju (ISO)."]
["Iznimno, za Kosovo se rabi posebna oznaka XK."]
[]
["Polje 3: Iznos – Unosi se iznos koji je naveden u fakturi primljenoj od inozemnog pružatelja usluge oplemenjivanja. Vrijednost iz fakture"]
[" preračunava se u eure prema srednjem tečaju HNB-a na dan fakture."]

{"sheet":"A.1. Uvoz na i izvoz nakon ","index":3,"n_rows":4,"n_cols":3,"rows_kept":4,"cut":false,"hidden":false,"merged":[]}
["Tablica A.1. Vrijednost robe koja se uvozi na oplemenjivanje i izvozi nakon oplemenjivanja (u eurima)"]
[]
["Vrsta transakcije","Zemlja","Iznos"]
["<Telefon>","<Telefaks>","<EMail>"]

{"sheet":"A.2. Prihod od usluge oplem.  ","index":4,"n_rows":4,"n_cols":3,"rows_kept":4,"cut":false,"hidden":false,"merged":[]}
["Tablica A.2. Prihod od pružene usluge oplemenjivanja (u eurima)"]
[]
["Vrsta transakcije","Zemlja","Iznos"]
["<Telefon>","<Telefaks>","<EMail>"]

{"sheet":"B.1. Izvoz na i uvoz nakon","index":5,"n_rows":4,"n_cols":3,"rows_kept":4,"cut":false,"hidden":false,"merged":[]}
["Tablica B.1. Vrijednost robe koja se izvozi na oplemenjivanje i uvozi nakon oplemenjivanja (u eurima)"]
[]
["Vrsta transakcije","Zemlja","Iznos"]
["<Telefon>","<Telefaks>","<EMail>"]

{"sheet":"B.2. Rashod za uslugu oplem.","index":6,"n_rows":4,"n_cols":3,"rows_kept":4,"cut":false,"hidden":false,"merged":[]}
["Tablica B.2. Rashod za primljenu uslugu oplemenjivanja (u eurima)"]
[]
["Vrsta transakcije","Zemlja","Iznos"]
["<Telefon>","<Telefaks>","<EMail>"]

{"sheet":"N. Napomena","index":7,"n_rows":3,"n_cols":4,"rows_kept":3,"cut":false,"hidden":false,"merged":[[2,0,8,0],[2,1,8,1],[2,3,8,6]]}
[]
[]
["Napomena:",null,null,"* Molimo kod Napomene ne koristiti tipku ENTER. Napišite Napomenu u jednom retku. Ako imate potrebu za dugačkom Napomenom stavite točku i nastavite pisati."]

{"sheet":"E. Kreiranje datoteke","index":8,"n_rows":39,"n_cols":8,"rows_kept":39,"cut":false,"hidden":false,"merged":[[8,4,8,5],[10,4,10,5],[6,4,6,5],[12,4,12,5]]}
["UPUTA ZA DOSTAVU PODATAKA:"]
[]
["1. Omogućite izvođenje makro naredbi"]
[]
["2. Popunite tablice  podacima"]
[]
["3. U zeleno polje upišite matični broj:",null,null,null,"00000325",null,null,"potvrdite unos tipkom <ENTER>"]
[]
["4. U narančasto polje upišite OIB:",null,null,null,"01234567890"]
[]
["5. U žuto polje upišite godinu / odaberite mjesec izvješća:",null,null,null,"2020",null,null,"12"]
[]
["6. U plavo polje unesite koji put podnosite izvještaj                                 ",null,null,null,"1"]
[]
["7. Pritisnite gumb 'Kreiraj XML datoteku' za kreiranje XML datoteke"]
[]
[]
[]
[]
[]
["7. Datoteka kreirana na lokaciji:"]
[]
[]
["8. Locirajte datoteku na navedenoj lokaciji"]
[]
["9. Provjerite naziv datoteke"]
[]
["10. Dogovorenim načinom dostavite XML datoteku"]
[]
[]
[]
["NAPOMENA"]
["Kod nekih MS Excel verzija je nakon omogućavanja izvođenja makro naredbi datoteku potrebno zatvoriti (da se spreme postavke) te ponovo otvoriti."]
["Do opcija za postavljanje makro naredbi dolazi se putem padajućeg izbornika u MS Excel programu:"]
["Za starije verzije Ecela:"]
["hrv. verzija >> Alati > Odrednice... > Sigurnost > Sigurnost makro naredbe... > odaberite srednja ili niska"]
["eng. verzija >> Tools > Options... > Security > MacroSecurity... > odaberite Medium ili Low"]
["U novijim verzijama Excela: "]
["Datoteka>Mogućnosti>Centar za pouzdanost>Postavke centra za pouzdanost>Postavke makronaredbi> odabir \"Omogući sve makronaredbe\""]

{"sheet":"Padajuće liste","index":9,"n_rows":251,"n_cols":7,"rows_kept":251,"cut":false,"hidden":true,"merged":[]}
["vrste transakcija A.1.",null,"Zemlja",null,"Godina","Mjesec","OZNAKA OSOBE"]
["1-roba uvezena na oplemenjivanje bez promjene vlasništva",null,"AF-AFGANISTAN",null,2023,"01","OS1-Izvještaj popunio/la"]
["2-roba izvezena nakon oplemenjivanja u inozemstvo vlasniku robe ili trećoj osobi",null,"AL-ALBANIJA",null,2024,"02","OS2-Odgovorna osoba"]
["3-roba uvezena na oplemenjivanje koja ostaje u RH",null,"DZ-ALZIR",null,2025,"03"]
[null,null,"AS-AMERICKA SAMOA",null,2026,"04"]
[null,null,"VI-AMERICKI DJEVICANSKI OTOCI",null,2027,"05"]
["vrste transakcija A.2.",null,"AD-ANDORA",null,2028,"06"]
["1a-prihod od usluge oplemenjivanja za robu koja se nakon oplemenjivanja vraća u inozemstvo",null,"AO-ANGOLA",null,2029,"07"]
["1b-prihod od usluge oplemenjivanja za robu koja nakon oplemenjivanja ostaje u RH",null,"AI-ANGUILLA",null,2030,"08"]
[null,null,"AQ-ANTARKTIKA",null,2031,"09"]
[null,null,"AG-ANTIGVA I BARBUDA",null,2032,"10"]
["vrste transakcija B.1.",null,"AR-ARGENTINA",null,2033,"11"]
["1-roba izvezena na oplemenjivanje u inozemstvo bez promjene vlasništva",null,"AM-ARMENIJA",null,2034,"12"]
["2-roba uvezena nakon oplemenjivanja u inozemstvu vlasniku robe u RH",null,"AW-ARUBA"]
["2a-roba kupljena u inozemstvu, oplemenjena u inozemstvu te nakon oplemenjivanja vraćena u RH (šifra vrste posla 52)  ",null,"AU-AUSTRALIJA"]
["3-roba izvezena na oplemenjivanje koja ostaje u inozemstvu",null,"AT-AUSTRIJA"]
[null,null,"AZ-AZERBAJDZAN"]
[null,null,"BS-BAHAMI"]
["vrste transakcija B.2.",null,"BH-BAHREIN"]
["1a-rashod za primljenu uslugu oplemenjivanja na robi koja se vraća u RH",null,"BD-BANGLADES"]
["1b-rashod za primljenu uslugu oplemenjivanja na robi koja nakon oplemenjivanja ostaje u inozemstvu",null,"BB-BARBADOS"]
[null,null,"BE-BELGIJA"]
[null,null,"BZ-BELIZE"]
[null,null,"BJ-BENIN"]
[null,null,"BM-BERMUDI"]
[null,null,"CI-BJELOKOSNA OBALA"]
[null,null,"BY-BJELORUSIJA"]
[null,null,"BW-BOCVANA"]
[null,null,"BO-BOLIVIJA, PLURINACIONALNA DRZAVA"]
[null,null,"BQ-BONAIRE, SVETI EUSTAZIJE I SABA"]
[null,null,"BA-BOSNA I HERCEGOVINA"]
[null,null,"CX-BOZICNI OTOK"]
[null,null,"BR-BRAZIL"]
[null,null,"VG-BRITANSKI DJEVICANSKI OTOCI"]
[null,null,"IO-BRITANSKI INDIJSKOOCEANSKI TERITORIJ"]
[null,null,"BN-BRUNEJ"]
[null,null,"BG-BUGARSKA"]
[null,null,"BF-BURKINA FASO"]
[null,null,"BI-BURUNDI"]
[null,null,"BT-BUTAN"]
[null,null,"TD-CAD"]
[null,null,"CZ-CESKA"]
[null,null,"CL-CILE"]
[null,null,"CY-CIPAR"]
[null,null,"ME-CRNA GORA"]
[null,null,"CW-CURACAO"]
[null,null,"DK-DANSKA"]
[null,null,"DM-DOMINIKA"]
[null,null,"DO-DOMINIKANSKA REPUBLIKA"]
[null,null,"DJ-DZIBUTI"]
[null,null,"EG-EGIPAT"]
[null,null,"EC-EKVADOR"]
[null,null,"GQ-EKVATORSKA GVINEJA"]
[null,null,"ER-ERITREJA"]
[null,null,"EE-ESTONIJA"]
[null,null,"ET-ETIOPIJA"]
[null,null,"FK-FALKLANDI (MALVINI)"]
[null,null,"FO-FEROJSKI OTOCI (OVCJI)"]
[null,null,"FJ-FIDZI"]
[null,null,"PH-FILIPINI"]
[null,null,"FI-FINSKA"]
[null,null,"FR-FRANCUSKA"]
[null,null,"FX-FRANCUSKA (EUROPSKI DIO)"]
[null,null,"GF-FRANCUSKA GVAJANA"]
[null,null,"PF-FRANCUSKA POLINEZIJA"]
[null,null,"TF-FRANCUSKI JUZNI TERITORIJ"]
[null,null,"GA-GABON"]
[null,null,"GM-GAMBIJA"]
[null,null,"GH-GANA"]
[null,null,"GI-GIBRALTAR"]
[null,null,"GR-GRCKA"]
[null,null,"GD-GRENADA"]
[null,null,"GL-GRENLAND"]
[null,null,"GE-GRUZIJA"]
[null,null,"GP-GUADELOUPE"]
[null,null,"GU-GUAM"]
[null,null,"GG-GUERNSEY"]
[null,null,"GY-GVAJANA"]
[null,null,"GT-GVATEMALA"]
[null,null,"GN-GVINEJA"]
[null,null,"GW-GVINEJA BISAU"]
[null,null,"HT-HAITI"]
[null,null,"HN-HONDURAS"]
[null,null,"HK-HONG KONG"]
[null,null,"IN-INDIJA"]
[null,null,"ID-INDONEZIJA"]
[null,null,"IQ-IRAK"]
[null,null,"IR-IRAN, ISLAMSKA REPUBLIKA"]
[null,null,"IE-IRSKA"]
[null,null,"IS-ISLAND"]
[null,null,"IT-ITALIJA"]
[null,null,"IL-IZRAEL"]
[null,null,"JM-JAMAJKA"]
[null,null,"JP-JAPAN"]
[null,null,"YE-JEMEN"]
[null,null,"JE-JERSEY"]
[null,null,"JO-JORDAN"]
[null,null,"GS-JUZNA DZORDZIJA I OTOCI JUZNI SENDVIC"]
[null,null,"SS-JUZNI SUDAN"]
[null,null,"ZA-JUZNOAFRICKA REPUBLIKA"]
[null,null,"KY-KAJMANSKI OTOCI"]
[null,null,"KH-KAMBODZA"]
[null,null,"CM-KAMERUN"]
[null,null,"CA-KANADA"]
[null,null,"QA-KATAR"]
[null,null,"KZ-KAZAHSTAN"]
[null,null,"KE-KENIJA"]
[null,null,"CN-KINA"]
[null,null,"KG-KIRGISTAN"]
[null,null,"KI-KIRIBATI"]
[null,null,"CC-KOKOSOVI OTOCI (KEELING)"]
[null,null,"CO-KOLUMBIJA"]
[null,null,"KM-KOMORI"]
[null,null,"CG-KONGO"]
[null,null,"CD-KONGO, DEMOKRATSKA REPUBLIKA"]
[null,null,"KP-KOREJA, DNR"]
[null,null,"KR-KOREJA, REPUBLIKA"]
[null,null,"XK-KOSOVO"]
[null,null,"CR-KOSTARIKA"]
[null,null,"CU-KUBA"]
[null,null,"CK-KUKOVI OTOCI"]
[null,null,"KW-KUVAJT"]
[null,null,"LA-LAOS, NDR"]
[null,null,"LS-LESOTO"]
[null,null,"LV-LETONIJA"]
[null,null,"LB-LIBANON"]
[null,null,"LR-LIBERIJA"]
[null,null,"LY-LIBIJA"]
[null,null,"LI-LIHTENSTAJN"]
[null,null,"LT-LITVA"]
[null,null,"LU-LUKSEMBURG"]
[null,null,"MG-MADAGASKAR"]
[null,null,"HU-MADZARSKA"]
[null,null,"MO-MAKAO"]
[null,null,"MK-MAKEDONIJA"]
[null,null,"MW-MALAVI"]
[null,null,"MV-MALDIVI"]
[null,null,"MY-MALEZIJA"]
[null,null,"ML-MALI"]
[null,null,"MT-MALTA"]
[null,null,"MA-MAROKO"]
[null,null,"MH-MARSALOVI OTOCI"]
[null,null,"MQ-MARTINIQUE"]
[null,null,"MU-MAURICIJUS"]
[null,null,"MR-MAURITANIJA"]
[null,null,"YT-MAYOTTE"]
[null,null,"MX-MEKSIKO"]
[null,null,"MM-MIJANMAR"]
[null,null,"FM-MIKRONEZIJA, SAVEZNE DRZAVE"]
[null,null,"MD-MOLDAVIJA, REPUBLIKA"]
[null,null,"MC-MONAKO"]
[null,null,"MN-MONGOLIJA"]
[null,null,"MS-MONTSERRAT"]
[null,null,"MZ-MOZAMBIK"]
[null,null,"NA-NAMIBIJA"]
[null,null,"NR-NAURU"]
[null,null,"NP-NEPAL"]
[null,null,"NE-NIGER"]
[null,null,"NG-NIGERIJA"]
[null,null,"NI-NIKARAGVA"]
[null,null,"NU-NIUE"]
[null,null,"NL-NIZOZEMSKA"]
[null,null,"NO-NORVESKA"]
[null,null,"NC-NOVA KALEDONIJA"]
[null,null,"NZ-NOVI ZELAND"]
[null,null,"DE-NJEMACKA"]
[null,null,"OM-OMAN"]
[null,null,"AX-OTOCI ALAND"]
[null,null,"TC-OTOCI TURKS I CAICOS"]
[null,null,"BV-OTOK BOUVET"]
[null,null,"HM-OTOK HEARD I OTOCI MCDONALD"]
[null,null,"IM-OTOK MAN"]
[null,null,"NF-OTOK NORFOLK"]
[null,null,"PK-PAKISTAN"]
[null,null,"PW-PALAU"]
[null,null,"PS-PALESTINA, DRZAVA"]
[null,null,"PA-PANAMA"]
[null,null,"PG-PAPUA NOVA GVINEJA"]
[null,null,"PY-PARAGVAJ"]
[null,null,"PE-PERU"]
[null,null,"PN-PITCAIRN"]
[null,null,"PL-POLJSKA"]
[null,null,"PR-PORTORIKO"]
[null,null,"PT-PORTUGAL"]
[null,null,"RE-REUNION"]
[null,null,"RW-RUANDA"]
[null,null,"RO-RUMUNJSKA"]
[null,null,"RU-RUSIJA"]
[null,null,"US-SAD"]
[null,null,"SV-SALVADOR"]
[null,null,"WS-SAMOA"]
[null,null,"SM-SAN MARINO"]
[null,null,"SA-SAUDIJSKA ARABIJA"]
[null,null,"SC-SEJSELI"]
[null,null,"SN-SENEGAL"]
[null,null,"SL-SIJERA LEONE"]
[null,null,"SG-SINGAPUR"]
[null,null,"SY-SIRIJA"]
[null,null,"MP-SJEVERNI MARIJANSKI OTOCI"]
[null,null,"SK-SLOVACKA"]
[null,null,"SI-SLOVENIJA"]
[null,null,"SB-SOLOMONSKI OTOCI"]
[null,null,"SO-SOMALIJA"]
[null,null,"ES-SPANJOLSKA"]
[null,null,"RS-SRBIJA"]
[null,null,"CF-SREDNJOAFRICKA REPUBLIKA"]
[null,null,"LK-SRI LANKA"]
[null,null,"SD-SUDAN"]
[null,null,"SR-SURINAM"]
[null,null,"SJ-SVALBARD I JAN MAYEN"]
[null,null,"SZ-SVAZI"]
[null,null,"SE-SVEDSKA"]
[null,null,"SH-SVETA HELENA,ASCENSION I TRISTAN DA CUNH"]
[null,null,"LC-SVETA LUCIJA"]
[null,null,"VA-SVETA STOLICA, DRZAVA VATIKANSKOG GRADA"]
[null,null,"BL-SVETI BARTOLOMEJ"]
[null,null,"KN-SVETI KRISTOFOR I NEVIS"]
[null,null,"MF-SVETI MARTIN (FRANCUSKI DIO)"]
[null,null,"SX-SVETI MARTIN (NIZOZEMSKI DIO)"]
[null,null,"PM-SVETI PETAR I MIKELON"]
[null,null,"ST-SVETI TOMA I PRINSIPE"]
[null,null,"VC-SVETI VINCENT I GRENADINI"]
[null,null,"CH-SVICARSKA"]
[null,null,"TJ-TADZIKISTAN"]
[null,null,"TH-TAJLAND"]
[null,null,"TW-TAJVAN, KINESKA PROVINCIJA"]
[null,null,"TZ-TANZANIJA, UJEDINJENA REPUBLIKA"]
[null,null,"TL-TIMOR LESTE"]
[null,null,"TG-TOGO"]
[null,null,"TK-TOKELAU"]
[null,null,"TO-TONGA"]
[null,null,"TT-TRINIDAD I TOBAGO"]
[null,null,"TN-TUNIS"]
[null,null,"TM-TURKMENISTAN"]
[null,null,"TR-TURSKA"]
[null,null,"TV-TUVALU"]
[null,null,"UG-UGANDA"]
[null,null,"UM-UJEDINJENE DRZ. MANJIH PACIFICKIH OTOKA"]
[null,null,"AE-UJEDINJENI ARAPSKI EMIRATI"]
[null,null,"UA-UKRAJINA"]
[null,null,"UY-URUGVAJ"]
[null,null,"UZ-UZBEKISTAN"]
[null,null,"VU-VANUATU"]
[null,null,"GB-VELIKA BRITANIJA"]
[null,null,"VE-VENEZUELA, BOLIVARIJANSKA REPUBLIKA"]
[null,null,"VN-VIJETNAM"]
[null,null,"WF-WALLIS I FUTUNA"]
[null,null,"ZM-ZAMBIJA"]
[null,null,"EH-ZAPADNA SAHARA"]
[null,null,"CV-ZELENORTSKA REPUBLIKA"]
[null,null,"ZW-ZIMBABVE"]